fUSD/lending_fUSD_20260405
["ID","MTS","AMOUNT","RATE_DAILY","PERIOD"]
[419856954,1775423445571,-150.0,0.000148,2]
[419856955,1775423445580,-166.66,0.000148,2]
[419856956,1775423445589,-9990.959028,0.00014807,7]
[419856957,1775423445598,-9026.540138,0.00014807,2]
[419856958,1775423445608,-150.0,0.00014811,2]
[419856959,1775423445617,-150.0,0.00014817,2]
[419856960,1775423445627,-150.0,0.00014821,2]
[419856961,1775423445636,-5061.29326262,0.00014822,2]
[419856962,1775423445645,-150.0,0.00014824,2]
[419856963,1775423445655,-150.0,0.00014824,2]
[419856964,1775423445664,-150.0,0.00014829,2]
[419856965,1775423445674,-1500.0,0.00014833,2]
[419856966,1775423445683,-1000.0,0.00014833,2]
[419856967,1775423445692,-1500.0,0.00014833,2]
[419856968,1775423445702,-150.0,0.00014836,2]
[419856969,1775423445711,-150.0,0.00014852,2]
[419856970,1775423445721,-150.0,0.00014857,2]
[419856971,1775423445730,-150.0,0.00014857,2]
[419856972,1775423445739,-150.0,0.00014857,2]
[419856973,1775423445748,-578.20924308,0.00014858,2]
[419856974,1775423445758,-201.93286099,0.00014858,2]
[419856975,1775423445767,-1377.42282659,0.00014858,2]
[419856976,1775423445777,-500.0,0.00014858,2]
[419856977,1775423445786,-9211.34798985,0.00014858,2]
[419856978,1775423445795,-695.39793187,0.00014858,2]
[419856979,1775423445804,-200.0,0.00014858,2]
[419856980,1775423445813,-500.0,0.00014858,2]
[419856981,1775423445823,-500.0,0.00014858,2]
[419856982,1775423445832,-500.0,0.00014858,2]
[419856983,1775423445841,-500.0,0.00014858,2]
[419856984,1775423445850,-151.0,0.00014858,2]
[419856985,1775423445859,-151.0,0.00014858,2]
[419856986,1775423445868,-151.0,0.00014858,2]
[419856987,1775423445877,-151.0,0.00014858,2]
[419856988,1775423445887,-154.76515316,0.00014858,2]
[419856989,1775423445895,-233.76893115,0.00014858,2]
[419856990,1775423445905,-500.0,0.00014858,2]
[419856991,1775423445914,-500.0,0.00014858,2]
[419856992,1775423445923,-500.0,0.00014858,2]
[419856993,1775423445932,-500.0,0.00014858,2]
[419856994,1775423445941,-500.0,0.00014858,2]
[419856995,1775423445950,-500.0,0.00014858,2]
[419856996,1775423445960,-500.0,0.00014858,2]
[419856997,1775423445969,-743.50770149,0.00014858,2]
[419856998,1775423445978,-500.0,0.00014858,2]
[419856999,1775423445988,-201.93286099,0.00014858,2]
[419857000,1775423445998,-3000.0,0.00014858,2]
[419857001,1775423446007,-3000.0,0.00014858,2]
[419857002,1775423446016,-329.2835348,0.00014858,2]
[419857003,1775423446026,-3000.0,0.00014858,2]
[419857004,1775423446035,-3000.0,0.00014858,2]
[419857005,1775423446044,-3000.0,0.00014858,2]
[419857006,1775423446053,-3000.0,0.00014858,2]
[419857007,1775423446062,-3000.0,0.00014858,2]
[419857008,1775423446071,-3000.0,0.00014858,2]
[419857009,1775423446081,-174.61919141,0.00014858,2]
[419857010,1775423446090,-3000.0,0.00014858,2]
[419857011,1775423446100,-3000.0,0.00014858,2]
[419857012,1775423446109,-3000.0,0.00014858,2]
[419857013,1775423446118,-3000.0,0.00014858,2]
[419857014,1775423446128,-151.0,0.00014858,2]
[419857015,1775423446138,-151.0,0.00014858,2]
[419857016,1775423446147,-156.587,0.00014858,2]
[419857017,1775423446156,-195.25511793,0.00014858,2]
[419857018,1775423446166,-1500.0,0.00014858,2]
[419857019,1775423446175,-668.65185757,0.00014858,2]
[419857020,1775423446184,-1500.0,0.00014858,2]
[419857021,1775423446194,-1500.0,0.00014858,2]
[419857022,1775423446203,-1500.0,0.00014858,2]
[419857023,1775423446212,-1500.0,0.00014858,2]
[419857024,1775423446222,-279.9045709,0.00014858,2]
[419857025,1775423446232,-170.0,0.00014858,2]
[419857026,1775423446241,-170.0,0.00014858,2]
[419857028,1775423446250,-170.0,0.00014858,2]
[419857030,1775423446260,-170.0,0.00014858,2]
[419857032,1775423446269,-170.0,0.00014858,2]
[419857034,1775423446278,-170.0,0.00014858,2]
[419857036,1775423446287,-170.0,0.00014858,2]
[419857038,1775423446296,-170.0,0.00014858,2]
[419857040,1775423446305,-170.0,0.00014858,2]
[419857042,1775423446315,-170.0,0.00014858,2]
[419857043,1775423446324,-170.0,0.00014858,2]
[419857044,1775423446334,-170.0,0.00014858,2]
[419857045,1775423446343,-230.7,0.00014859,2]
[419857046,1775423446352,-1500.0,0.00014863,2]
[419857047,1775423446362,-1500.0,0.00014863,2]
[419857048,1775423446371,-249.31,0.0001487,2]
[419857049,1775423446380,-150.0,0.00014871,2]
[419857050,1775423446389,-150.0,0.00014871,2]
[419857051,1775423446399,-150.0,0.00014873,2]
[419857052,1775423446408,-500.0,0.00014874,2]
[419857053,1775423446418,-500.0,0.00014874,2]
[419857054,1775423446427,-500.0,0.00014874,2]
[419857055,1775423446437,-500.0,0.00014874,2]
[419857056,1775423446446,-1500.0,0.00014876,2]
[419857057,1775423446455,-1643.48326881,0.00014876,2]
[419857058,1775423446464,-1500.0,0.00014876,2]
[419857059,1775423446474,-1500.0,0.00014876,2]
[419857060,1775423446483,-1240.76074935,0.00014876,2]
[419857061,1775423446492,-503.24663382,0.00014876,2]
[419857062,1775423446501,-1500.0,0.00014876,2]
[419857063,1775423446511,-847.07116371,0.00014876,2]
[419857064,1775423446521,-1500.0,0.00014876,2]
[419857065,1775423446531,-1500.0,0.00014876,2]
[419857066,1775423446541,-1500.0,0.00014876,2]
[419857067,1775423446550,-150.0,0.0001488,2]
[419857068,1775423446559,-150.0,0.00014886,2]
[419857069,1775423446571,-150.0,0.00014887,2]
[419857070,1775423446581,-229.30734682,0.000149,2]
[419857071,1775423446590,-229.3073468,0.000149,2]
[419857072,1775423446601,-150.0,0.00014903,2]
[419857073,1775423446610,-150.0,0.00014905,2]
[419857074,1775423446619,-150.0,0.00014909,2]
[419857075,1775423446629,-9552.16786547,0.00014913,2]
[419857076,1775423446639,-500.0,0.00014913,2]
[419857077,1775423446651,-151.0,0.00014913,2]
[419857078,1775423446660,-150.0,0.00014914,2]
[419857079,1775423446670,-150.0,0.00014918,2]
[419857080,1775423446679,-150.0,0.00014918,2]
[419857081,1775423446689,-500.0,0.00014919,2]
[419857082,1775423446699,-150.0,0.00014922,2]
[419857083,1775423446709,-500.0,0.00014924,2]
[419857084,1775423446718,-500.0,0.00014924,2]
[419857085,1775423446727,-500.0,0.00014924,2]
[419857086,1775423446738,-22239.19362512,0.00014924,2]
[419857087,1775423446748,-1500.0,0.00014934,2]
[419857088,1775423446758,-1500.0,0.00014934,2]
[419857089,1775423446767,-1500.0,0.00014934,2]
[419857090,1775423446777,-291.67,0.0001494,2]
[419857091,1775423446786,-1500.0,0.0001494,2]
[419857092,1775423446795,-22083.80448422,0.00014941,2]
[419857093,1775423446805,-150.0,0.00014943,2]
[419857094,1775423446816,-150.0,0.00014945,2]
[419857095,1775423446825,-150.0,0.00014949,2]
[419857096,1775423447134,-150.0,0.00014957,2]
[419857097,1775423447146,-150.0,0.00014965,2]
[419857098,1775423447155,-150.0,0.00014965,2]
[419857099,1775423447166,-9905.5980765,0.00014968,2]
[419857100,1775423447177,-500.0,0.00014968,2]
[419857101,1775423447186,-151.0,0.00014968,2]
[419857102,1775423447196,-150.0,0.00014971,2]
[419857103,1775423447205,-150.0,0.00014971,2]
[419857104,1775423447214,-150.0,0.00014982,2]
[419857105,1775423447223,-150.0,0.00014989,2]
[419857106,1775423447232,-150.0,0.00014991,2]
[419857107,1775423447242,-150.0,0.00014994,2]
[419857108,1775423447251,-1116.1,0.00015,2]
[419857109,1775423447260,-279.02,0.00015,2]
[419857110,1775423447270,-279.02,0.00015,2]
[419857111,1775423447279,-1912.76,0.00015,2]
[419857112,1775423447288,-2999.8,0.00015,2]
[419857113,1775423447298,-1641.8,0.00015,2]
[419857114,1775423447308,-150.0,0.00015,2]
[419857115,1775423447317,-2067.27601646,0.00015,2]
[419857116,1775423447327,-8047.93487487,0.00015,2]
[419857117,1775423447336,-151.0,0.00015,2]
[419857118,1775423447346,-151.0,0.00015,2]
[419857119,1775423447356,-151.0,0.00015,2]
[419857120,1775423447365,-3216.191115,0.00015,7]
[419857121,1775423447375,-150.0,0.00015012,2]
[419857122,1775423447384,-150.0,0.00015012,2]
[419857123,1775423447394,-500.0,0.00015017,2]
[419857124,1775423447403,-150.0,0.00015018,2]
[419857125,1775423447413,-10272.10520533,0.00015023,2]
[419857126,1775423447422,-500.0,0.00015023,2]
[419857127,1775423447432,-151.0,0.00015023,2]
[419857128,1775423447442,-3050.463081,0.00015023,2]
[419857129,1775423447453,-150.0,0.00015026,2]
[419857130,1775423447462,-150.0,0.00015029,2]
[419857131,1775423447472,-500.0,0.00015033,2]
[419857132,1775423447482,-10000.0,0.0001504,2]
[419857133,1775423447491,-150.0,0.0001504,2]
[419857134,1775423447502,-150.0,0.0001504,2]
[419857135,1775423447511,-500.0,0.00015043,2]
[419857136,1775423447520,-500.0,0.00015043,2]
[419857137,1775423447530,-500.0,0.00015043,2]
[419857138,1775423447539,-500.0,0.00015043,2]
[419857139,1775423447548,-339.79133416,0.00015043,2]
[419857140,1775423447558,-500.0,0.00015043,2]
[419857141,1775423447567,-500.0,0.00015043,2]
[419857142,1775423447576,-150.0,0.00015055,2]
[419857143,1775423447586,-150.0,0.00015057,2]
[419857144,1775423447595,-150.0,0.00015059,2]
[419857145,1775423447604,-150.0,0.00015059,2]
[419857146,1775423447613,-150.0,0.00015061,2]
[419857147,1775423447623,-5957.33,0.00015068,2]
[419857148,1775423447632,-800.0,0.00015068,2]
[419857149,1775423447641,-364.40328381,0.0001507,2]
[419857150,1775423447651,-500.0,0.00015072,2]
[419857151,1775423447660,-500.0,0.00015072,2]
[419857152,1775423447670,-500.0,0.00015072,2]
[419857153,1775423447679,-500.0,0.00015072,2]
[419857154,1775423447689,-150.0,0.00015074,2]
[419857155,1775423447698,-10652.17309792,0.00015078,2]
[419857156,1775423447707,-500.0,0.00015078,2]
[419857157,1775423447716,-151.0,0.00015078,2]
[419857158,1775423447726,-168.186131,0.00015084,2]
[419857159,1775423447735,-168.186131,0.00015084,2]
[419857160,1775423447745,-150.0,0.00015086,2]
[419857161,1775423447754,-150.0,0.00015086,2]
[419857162,1775423447763,-150.0,0.00015086,2]
[419857163,1775423447773,-150.0,0.00015091,2]
[419857164,1775423447783,-3934.62886819,0.00015092,2]
[419857165,1775423447792,-150.0,0.00015096,2]
[419857166,1775423447801,-150.0,0.00015106,2]
[419857167,1775423447811,-150.0,0.00015106,2]
[419857168,1775423447820,-507.0,0.00015108,3]
[419857169,1775423447830,-150.0,0.00015114,2]
[419857170,1775423447840,-150.0,0.00015127,2]
[419857171,1775423447851,-150.0,0.0001513,2]
[419857172,1775423447864,-150.0,0.00015131,2]
[419857173,1775423447874,-500.0,0.00015133,2]
[419857174,1775423447884,-151.0,0.00015133,2]
[419857175,1775423447893,-5888.0,0.00015134,2]
[419857176,1775423447902,-153.8,0.0001514,2]
[419857177,1775423447911,-150.0,0.00015143,2]
[419857178,1775423447923,-150.0,0.00015153,2]
[419857179,1775423447935,-150.0,0.00015153,2]
[419857180,1775423447945,-210.48799529,0.00015157,2]
[419857181,1775423447955,-150.0,0.00015158,2]
[419857182,1775423447964,-150.0,0.00015164,2]
[419857183,1775423447976,-150.0,0.00015165,2]
[419857184,1775423447988,-665.87615404,0.00015168,2]
[419857185,1775423447999,-150.0,0.00015171,2]
[419857186,1775423448009,-150.0,0.00015177,2]
[419857187,1775423448018,-153.8,0.00015187,2]
[419857188,1775423448027,-500.0,0.00015188,2]
[419857189,1775423448036,-151.0,0.00015188,2]
[419857190,1775423448046,-500.0,0.00015193,2]
[419857191,1775423448055,-500.0,0.00015193,2]
[419857192,1775423448064,-500.0,0.00015193,2]
[419857193,1775423448074,-372.78865135,0.00015199,2]
[419857194,1775423448083,-150.0,0.000152,2]
[419857195,1775423448092,-150.0,0.000152,2]
[419857196,1775423448101,-150.0,0.000152,2]
[419857197,1775423448111,-150.0,0.000152,2]
[419857198,1775423448121,-150.0,0.000152,2]
[419857199,1775423448132,-150.0,0.000152,2]
[419857200,1775423448142,-150.0,0.000152,2]
[419857201,1775423448151,-150.0,0.000152,2]
[419857202,1775423448161,-150.0,0.000152,2]
[419857203,1775423448172,-150.0,0.000152,2]
[419857204,1775423448183,-10000.0,0.00015205,2]
[419857205,1775423448193,-150.0,0.00015223,2]
[419857206,1775423448202,-150.0,0.00015229,2]
[419857207,1775423448212,-150.0,0.00015235,2]
[419857208,1775423448223,-150.0,0.00015236,2]
[419857209,1775423448234,-150.0,0.00015242,2]
[419857210,1775423448244,-500.0,0.00015243,2]
[419857211,1775423448254,-151.0,0.00015243,2]
[419857212,1775423448264,-150.0,0.00015247,2]
[419857213,1775423448273,-150.0,0.00015247,2]
[419857214,1775423448282,-22239.19362512,0.0001525,2]
[419857215,1775423448293,-150.0,0.00015257,2]
[419857216,1775423448304,-22083.80448422,0.00015261,2]
[419857217,1775423448314,-150.0,0.00015269,2]
[419857218,1775423448323,-150.0,0.0001527,2]
[419857219,1775423448333,-150.0,0.00015273,2]
[419857220,1775423448342,-150.0,0.00015286,2]
[419857221,1775423448352,-150.0,0.00015294,2]
[419857222,1775423448361,-150.0,0.00015294,2]
[419857223,1775423448371,-500.0,0.00015298,2]
[419857224,1775423448380,-151.0,0.00015298,2]
[419857225,1775423448390,-168.9041,0.000153,2]
[419857226,1775423448399,-1517.64,0.000153,2]
[419857227,1775423448409,-2000.0,0.000153,2]
[419857228,1775423448419,-188.0,0.00015301,5]
[419857229,1775423448428,-150.0,0.00015304,2]
[419857230,1775423448437,-180.50323414,0.00015308,2]
[419857231,1775423448447,-1326.72812733,0.00015309,2]
[419857232,1775423449759,-503.44357086,0.00015309,2]
[419857233,1775423449778,-4057.82830181,0.00015309,2]
[419857234,1775423449788,-150.0,0.00015309,2]
[419857235,1775423449797,-150.0,0.00015314,2]
[419857236,1775423449807,-150.0,0.00015314,2]
[419857237,1775423449817,-150.0,0.00015314,2]
[419857238,1775423449827,-5888.0,0.00015316,2]
[419857239,1775423449836,-150.0,0.00015326,2]
[419857240,1775423449846,-1000.0,0.0001533,2]
[419857241,1775423449856,-1000.0,0.0001533,2]
[419857242,1775423449866,-1000.0,0.0001533,2]
[419857243,1775423449875,-1000.0,0.0001533,2]
[419857244,1775423449884,-1000.0,0.0001533,2]
[419857245,1775423449893,-1055.485,0.00015336,2]
[419857246,1775423449903,-1217.0,0.00015336,2]
[419857247,1775423449913,-150.0,0.00015339,2]
[419857248,1775423449922,-150.0,0.00015341,2]
[419857249,1775423449931,-150.0,0.00015341,2]
[419857250,1775423449940,-150.0,0.00015343,2]
[419857251,1775423449950,-500.0,0.00015343,2]
[419857252,1775423449960,-150.0,0.00015345,2]
[419857253,1775423449970,-500.0,0.00015353,2]
[419857254,1775423449979,-151.0,0.00015353,2]
[419857255,1775423449990,-433.0,0.00015359,2]
[419857256,1775423450000,-150.0,0.0001536,2]
[419857257,1775423450010,-150.0,0.0001536,2]
[419857258,1775423450019,-150.0,0.00015371,2]
[419857259,1775423450028,-150.0,0.00015374,2]
[419857260,1775423450038,-2000.0,0.00015381,2]
[419857261,1775423450047,-1762.51968471,0.00015381,2]
[419857262,1775423450056,-150.0,0.00015382,2]
[419857263,1775423450066,-150.0,0.00015388,2]
[419857264,1775423450075,-150.0,0.00015388,2]
[419857265,1775423450084,-442.89,0.00015394,2]
[419857266,1775423450093,-150.0,0.000154,2]
[419857267,1775423450103,-512.60947705,0.000154,2]
[419857268,1775423450112,-209.40437684,0.00015406,2]
[419857269,1775423450121,-1428.38747117,0.00015406,2]
[419857270,1775423450130,-200.0,0.00015406,2]
[419857271,1775423450139,-771.01748645,0.00015406,2]
[419857272,1775423450147,-339.62894545,0.00015406,2]
[419857273,1775423450156,-181.08010149,0.00015406,2]
[419857274,1775423450165,-693.3919763,0.00015406,2]
[419857275,1775423450174,-290.26104003,0.00015406,2]
[419857276,1775423450184,-150.0,0.00015406,2]
[419857277,1775423450193,-500.0,0.00015408,2]
[419857278,1775423450201,-151.0,0.00015408,2]
[419857279,1775423450211,-150.0,0.00015409,2]
[419857280,1775423450219,-154.18,0.0001541,2]
[419857281,1775423450228,-2000.0,0.00015411,2]
[419857282,1775423450237,-753.85680119,0.00015411,2]
[419857283,1775423450246,-150.0,0.00015411,2]
[419857284,1775423450255,-1130.90533197,0.00015416,2]
[419857285,1775423450264,-1007.67687138,0.00015416,2]
[419857286,1775423450274,-1073.09012937,0.00015416,2]
[419857287,1775423450283,-1036.35072996,0.00015416,2]
[419857288,1775423450293,-1108.75347731,0.00015416,2]
[419857289,1775423450302,-1018.26442651,0.00015416,2]
[419857290,1775423450311,-1631.1811914,0.00015416,2]
[419857291,1775423450320,-150.0,0.00015418,2]
[419857292,1775423450329,-2000.0,0.00015424,2]
[419857293,1775423450339,-1502.58762782,0.00015424,2]
[419857294,1775423450348,-1950.63286364,0.00015424,2]
[419857295,1775423450358,-558.37452133,0.00015424,2]
[419857296,1775423450368,-2000.0,0.00015424,2]
[419857297,1775423450377,-2000.0,0.00015424,2]
[419857298,1775423450386,-150.0,0.00015429,2]
[419857299,1775423450395,-150.0,0.00015429,2]
[419857300,1775423450405,-150.0,0.00015435,2]
[419857301,1775423450414,-150.0,0.00015435,2]
[419857302,1775423450423,-150.0,0.00015443,2]
[419857303,1775423450433,-150.0,0.00015451,2]
[419857304,1775423450442,-150.0,0.00015455,2]
[419857305,1775423450451,-150.0,0.00015457,2]
[419857306,1775423450460,-500.0,0.00015463,2]
[419857307,1775423450470,-151.0,0.00015463,2]
[419857308,1775423450479,-150.0,0.00015478,2]
[419857309,1775423450489,-381.20749087,0.00015482,2]
[419857310,1775423450498,-171.96403511,0.00015482,2]
[419857311,1775423450507,-2000.0,0.00015482,2]
[419857312,1775423450517,-150.0,0.00015482,2]
[419857313,1775423450526,-150.0,0.00015482,2]
[419857314,1775423450536,-150.0,0.00015486,2]
[419857315,1775423450546,-193.24301277,0.00015488,2]
[419857316,1775423450555,-150.0,0.00015491,2]
[419857317,1775423450564,-150.0,0.00015495,2]
[419857318,1775423450574,-3934.62886819,0.00015496,2]
[419857319,1775423450583,-150.0,0.00015497,2]
[419857320,1775423450591,-162.3905,0.000155,2]
[419857321,1775423450601,-1661.34286454,0.000155,3]
[419857322,1775423450610,-5643.7200837,0.000155,3]
[419857323,1775423450619,-1231.52674065,0.000155,2]
[419857324,1775423450628,-150.0,0.00015513,2]
[419857325,1775423450638,-150.0,0.00015514,2]
[419857326,1775423450647,-150.0,0.0001552,2]
[419857327,1775423450656,-150.0,0.00015527,2]
[419857328,1775423450666,-150.0,0.00015529,2]
[419857329,1775423450675,-150.0,0.00015529,2]
[419857330,1775423450684,-665.87615402,0.00015534,2]
[419857331,1775423450694,-150.0,0.00015543,2]
[419857332,1775423450704,-150.0,0.00015543,2]
[419857333,1775423450714,-150.0,0.00015543,2]
[419857334,1775423450723,-150.0,0.00015548,2]
[419857335,1775423450734,-500.0,0.00015552,2]
[419857336,1775423450744,-652.815241,0.00015553,2]
[419857337,1775423450754,-652.815241,0.00015553,2]
[419857338,1775423450764,-652.815241,0.00015553,2]
[419857339,1775423450773,-652.815241,0.00015553,2]
[419857340,1775423450783,-5888.0,0.00015553,2]
[419857341,1775423450792,-150.0,0.00015564,2]
[419857342,1775423450802,-150.0,0.00015571,2]
[419857343,1775423450811,-22239.19362512,0.00015575,2]
[419857344,1775423450820,-150.0,0.00015576,2]
[419857345,1775423450829,-150.0,0.00015576,2]
[419857346,1775423450840,-6020.0,0.00015577,2]
[419857347,1775423450849,-2471.0,0.00015577,2]
[419857348,1775423450859,-150.0,0.00015579,2]
[419857349,1775423450870,-22083.80448422,0.0001558,2]
[419857350,1775423450879,-1000.0,0.00015581,2]
[419857351,1775423450887,-150.0,0.00015583,2]
[419857352,1775423450897,-3018.0,0.00015584,2]
[419857353,1775423450906,-539.252182,0.00015586,2]
[419857354,1775423450916,-539.252182,0.00015586,2]
[419857355,1775423450927,-539.252182,0.00015586,2]
[419857356,1775423450936,-539.252182,0.00015586,2]
[419857357,1775423450946,-150.0,0.00015589,2]
[419857358,1775423450955,-1000.0,0.00015591,2]
[419857359,1775423450964,-1000.0,0.00015591,2]
[419857360,1775423450973,-1000.0,0.00015591,2]
[419857361,1775423450982,-1000.0,0.00015591,2]
[419857362,1775423450992,-1000.0,0.00015591,2]
[419857363,1775423451002,-1000.0,0.00015591,2]
[419857364,1775423451011,-162.3905,0.000156,2]
[419857365,1775423451020,-150.0,0.000156,2]
[419857366,1775423451029,-150.0,0.000156,2]
[419857367,1775423451038,-150.0,0.000156,2]
[419857368,1775423451048,-180.50323412,0.00015604,2]
[419857369,1775423451056,-150.0,0.00015617,2]
[419857370,1775423451066,-150.0,0.00015624,2]
[419857371,1775423451075,-150.0,0.00015624,2]
[419857372,1775423451084,-150.0,0.00015629,2]
[419857373,1775423451093,-733.77686062,0.00015634,2]
[419857374,1775423451102,-150.0,0.00015634,2]
[419857375,1775423451111,-150.0,0.00015636,2]
[419857376,1775423451121,-150.0,0.00015652,2]
[419857377,1775423451129,-150.0,0.00015657,2]
[419857378,1775423451138,-150.0,0.00015657,2]
[419857379,1775423451147,-150.0,0.00015663,2]
[419857380,1775423451156,-2351.0,0.00015669,2]
[419857381,1775423451165,-150.0,0.00015671,2]
[419857382,1775423451174,-150.0,0.00015671,2]
[419857383,1775423451184,-250.0,0.00015671,2]
[419857384,1775423451192,-155.09,0.00015671,2]
[419857385,1775423451201,-150.0,0.00015673,2]
[419857386,1775423451210,-1478.75367566,0.0001568,2]
[419857387,1775423451219,-150.0,0.0001568,2]
[419857388,1775423451228,-150.0,0.0001568,2]
[419857389,1775423451236,-6465.32,0.00015684,2]
[419857390,1775423451245,-2041.77,0.00015684,2]
[419857391,1775423451255,-150.0,0.00015686,2]
[419857392,1775423451264,-150.0,0.00015687,2]
[419857393,1775423451273,-500.0,0.00015689,2]
[419857394,1775423451282,-500.0,0.00015689,2]
[419857395,1775423451291,-500.0,0.00015689,2]
[419857396,1775423451300,-162.3905,0.000157,2]
[419857397,1775423451309,-162.3905,0.000157,2]
[419857398,1775423451318,-162.3905,0.000157,2]
[419857399,1775423451327,-162.3905,0.000157,2]
[419857400,1775423451336,-162.3905,0.000157,2]
[419857401,1775423451345,-162.3905,0.000157,2]
[419857402,1775423451354,-162.3905,0.000157,2]
[419857403,1775423451363,-162.3905,0.000157,2]
[419857404,1775423451372,-162.3905,0.000157,2]
[419857405,1775423451381,-162.3905,0.000157,2]
[419857406,1775423451390,-162.3905,0.000157,2]
[419857407,1775423451399,-162.3905,0.000157,2]
[419857408,1775423451408,-162.3905,0.000157,2]
[419857409,1775423451416,-162.3905,0.000157,2]
[419857410,1775423451426,-162.3905,0.000157,2]
[419857411,1775423451435,-162.3905,0.000157,2]
[419857412,1775423451444,-162.3905,0.000157,2]
[419857413,1775423451453,-162.3905,0.000157,2]
[419857414,1775423451462,-162.3905,0.000157,2]
[419857415,1775423451471,-162.3905,0.000157,2]
[419857416,1775423451479,-162.3905,0.000157,2]
[419857417,1775423451488,-162.3905,0.000157,2]
[419857418,1775423451497,-162.3905,0.000157,2]
[419857419,1775423451506,-162.3905,0.000157,2]
[419857420,1775423451515,-297041.1493772,0.00015703,2]
[419857421,1775423451524,-140502.683786,0.00015709,2]
[419857422,1775423451533,-3768.1497075,0.00015709,2]
[419857423,1775423451542,-636.073718,0.00015709,2]
[419857424,1775423451551,-636.073718,0.00015709,2]
[419857425,1775423451560,-636.073718,0.00015709,2]
[419857426,1775423451569,-636.073718,0.00015709,2]
[419857427,1775423451578,-150.0,0.00015709,2]
[419857428,1775423451588,-150.0,0.00015714,2]
[419857429,1775423451597,-150.0,0.00015718,2]
[419857430,1775423451606,-150.0,0.00015718,2]
[419857431,1775423451615,-500.0,0.00015721,2]
[419857432,1775423451624,-500.0,0.00015721,2]
[419857433,1775423451634,-500.0,0.00015721,2]
[419857434,1775423451643,-618.56,0.00015721,2]
[419857435,1775423451651,-500.0,0.00015721,2]
[419857436,1775423451660,-500.0,0.00015721,2]
[419857437,1775423451669,-500.0,0.00015721,2]
[419857438,1775423451678,-500.0,0.00015721,2]
[419857439,1775423451688,-500.0,0.00015721,2]
[419857440,1775423451696,-151.0,0.00015721,2]
[419857441,1775423451705,-151.0,0.00015721,2]
[419857442,1775423451715,-151.0,0.00015721,2]
[419857443,1775423451724,-150.0,0.00015722,2]
[419857444,1775423451733,-150.0,0.00015726,2]
[419857445,1775423451743,-150.0,0.00015726,2]
[419857446,1775423451751,-2962.0,0.00015726,2]
[419857447,1775423451761,-2962.0,0.00015726,2]
[419857448,1775423451770,-500.0,0.00015726,2]
[419857449,1775423451780,-2962.0,0.00015726,2]
[419857450,1775423451790,-500.0,0.00015726,2]
[419857451,1775423451799,-2962.0,0.00015726,2]
[419857452,1775423451808,-2962.0,0.00015726,2]
[419857453,1775423451817,-500.0,0.00015726,2]
[419857454,1775423451826,-2962.0,0.00015726,2]
[419857455,1775423451835,-500.0,0.00015726,2]
[419857456,1775423451844,-2962.0,0.00015726,2]
[419857457,1775423451853,-500.0,0.00015726,2]
[419857458,1775423451862,-2962.0,0.00015726,2]
[419857459,1775423451871,-500.0,0.00015726,2]
[419857460,1775423451880,-2962.0,0.00015726,2]
[419857461,1775423451890,-500.0,0.00015726,2]